Cogmind - Beta 13 @@@ ROGUE MODE // 2024.07.01 @ 01:38:51 Player: Duduxx Result: Destroyed by 44-KHJ(z) with Zionite Laser-S Performance ------------- Evolutions (1) 500 Regions Visited (5) 1000 Robots Destroyed (21) 105 Value Destroyed (576) 576 Prototype IDs (2) 40 Alien Tech Used (0) 0 Bonus (608) 608 TOTAL SCORE: 2829 Bonus ------- High Alert Combat Kills 8 Met Imprinter 300 Was Imprinted 300 Cogmind --------- Core Integrity 0/400 Matter 223/300 Energy 165/170 System Corruption 0% Temperature Cool (16) Movement Treading (160) Location -7/Deep Caves Parts ------- > --- POWER (1) -------- Makeshift Power Source > --- PROPULSION (2) --- Light Treads Improved Treads > --- UTILITY (4) ------ Large Storage Unit 0b10 Decoder Chip [Skirmisher] Advanced Targeting Computer Makeshift Light Armor Plating > --- WEAPON (2) ------- Battle Cannon Grenade Launcher > --- INVENTORY (15) --- Makeshift Power Source Improved Treads Relay Coupler [NC] (38) Relay Coupler [Demolisher] (25) Relay Coupler [Behemoth] (19) Improved EM Shotgun Improved EM Shotgun Assault Rifle Makeshift Shrapnel Gun Improved Light Cannon Mini Grenade Launcher Mini Grenade Launcher Heavy Rocket Launcher Self-destruct Interrupter (50) Peak State ------------ > --- POWER ------------ Makeshift Power Source > --- PROPULSION ------- Light Treads Improved Treads > --- UTILITY ---------- Large Storage Unit 0b10 Decoder Chip [Skirmisher] Advanced Targeting Computer Makeshift Light Armor Plating > --- WEAPON ----------- Battle Cannon Grenade Launcher > --- INVENTORY -------- Makeshift Power Source Improved Treads Relay Coupler [NC] Relay Coupler [Demolisher] Relay Coupler [Behemoth] Improved EM Shotgun Improved EM Shotgun Assault Rifle Makeshift Shrapnel Gun Improved Light Cannon Mini Grenade Launcher Mini Grenade Launcher Heavy Rocket Launcher Self-destruct Interrupter [Rating: 27] Favorites ----------- Power Ion Engine Engine Ion Engine Propulsion Light Treads Treads Light Treads Leg Aluminum Leg Utility Large Storage Unit Device Weight Redist. System Storage Large Storage Unit Processor 0b10 Decoder Chip [Skirmisher] Protection Light Armor Plating Weapon Assault Rifle Energy Gun Beam Rifle Energy Cannon Beam Cannon Ballistic Gun Assault Rifle Ballistic Cannon Battle Cannon Launcher Grenade Launcher Build | -11 -10 -9 -9 -7 -7 ------- Run | Yrd Mat Mat Min Zio Dee Slots Evolved 2 | . . 2 . . . Power . | . . . . . . Propulsion . | . . . . . . Utility 2 | . . 2 . . . Weapon . | . . . . . . Parts Attached 32 | 6 2 16 1 5 2 Power 5 | 1 . 3 . 1 . Engine 5 | 1 . 3 . 1 . Core . | . . . . . . Reactor . | . . . . . . Propulsion 5 | 2 . 3 . . . Treads 3 | . . 3 . . . Leg 2 | 2 . . . . . Wheel . | . . . . . . Hover . | . . . . . . Flight . | . . . . . . Utility 13 | 1 1 6 1 3 1 Device 4 | . 1 3 . . . Storage 2 | 1 . 1 . . . Processor 4 | . . 1 . 3 . Hackware . | . . . . . . Protection 3 | . . 1 1 . 1 Artifact . | . . . . . . Weapon 9 | 2 1 4 . 1 1 Energy Gun 2 | 1 . 1 . . . Energy Cannon 2 | . 1 1 . . . Ballistic Gun 3 | 1 . 2 . . . Ballistic Cannon 1 | . . . . 1 . Launcher 1 | . . . . . 1 Special Weapon . | . . . . . . Impact Weapon . | . . . . . . Slashing Weapon . | . . . . . . Piercing Weapon . | . . . . . . Special Melee Weapon . | . . . . . . Unidentified Prototypes . | . . . . . . Parts Lost 10 | . . 9 . . 1 Power 3 | . . 3 . . . Propulsion 2 | . . 2 . . . Utility 2 | . . 1 . . 1 Weapon 3 | . . 3 . . . Highest Loss Streak 4 | . . 4 . . 1 To Critical Strikes . | . . . . . . Average Slot Usage (%) 98 | . 92 95 100 99 99 Engine 11 | . 14 10 11 11 11 Treads 16 | . . 7 22 22 22 Leg 5 | . 28 14 . . . Device 8 | . 7 20 20 1 . Storage 11 | . 14 11 11 11 11 Processor 15 | . . 7 11 20 22 Protection 7 | . . 1 1 11 10 Energy Gun 2 | . 14 7 . . . Energy Cannon 5 | . . 10 11 2 . Ballistic Gun 9 | . 14 4 11 11 10 Ballistic Cannon 5 | . . . . 8 11 Naked Turns . | . . . . . . Heaviest Build 35 | 14 16 35 34 34 32 Greatest Support 49 | 20 20 49 49 43 43 Greatest Overweight (x) 1 | 1 . 1 . . . Average Overweight (x) . | . . . . . . Largest Inventory Capacity 15 | 8 8 15 15 15 15 Average Capacity 14 | 7 8 14 15 15 15 Most Carried 15 | 4 8 14 13 15 15 Average Carried 12 | 1 6 9 12 14 14 Final Capacity 15 | 8 8 15 15 15 15 Final Carried 15 | 4 8 12 13 15 14 Class Distribution -------------------- 61% | Mutant 38% | Derelict-Mutant Dominant Class ---------------- Mutant | -10/Materials Mutant | -9/Materials Mutant | -9/Mines Derelict-Mutant | -7/Zion Derelict-Mutant | -7/Deep Caves Resources | -11 -10 -9 -9 -7 -7 ----------- Run | Yrd Mat Mat Min Zio Dee Matter Collected 478 | 249 3 155 22 49 . Remotely . | . . . . . . Salvage Created 613 | . 46 567 . . . Parts 36 | . 4 32 . . . Haulers Intercepted . | . . . . . . Recyclers Shooed 1 | . . 1 . . . Parts Field Recycled . | . . . . . . Retrieved Matter . | . . . . . . Parts Self-Destructed . | . . . . . . Prevented . | . . . . . . Kills | -11 -10 -9 -9 -7 -7 ------- Run | Yrd Mat Mat Min Zio Dee Combat Hostiles Destroyed 19 | . 1 18 . . . Guns 11 | . 1 10 . . . Cannons 8 | . . 8 . . . Classes Destroyed 5 | . 1 4 . . . Operator 1 | . . 1 . . . Watcher 1 | . . 1 . . . Swarmer 6 | . . 6 . . . Grunt 11 | . 1 10 . . . Sentry 2 | . . 2 . . . Best Kill Streak 8 | . 1 8 . . . Combat Bots Only 6 | . 1 6 . . . Max Kills in Single Turn 1 | . 1 1 . . . Gunslinging . | . . . . . . Exploded . | . . . . . . Melee . | . . . . . . Uniques/NPCs Destroyed . | . . . . . . Combat | -11 -10 -9 -9 -7 -7 -------- Run | Yrd Mat Mat Min Zio Dee Hostile Shots Fired 192 | . . 169 . . 23 Missed 51 | . . 46 . . 5 Damage Taken 2137 | . . 1567 . . 570 Core 408 | . . 252 . . 156 Absorbed by Shields . | . . . . . . Regen/Repaired (Parts) 43 | . . 43 . . . Core Remaining (%) 100 | 100 100 . . . . Volleys Fired 54 | . 1 53 . . . Largest 2 | . 2 2 . . . Hottest 116 | . 60 116 . . . Shots Fired 107 | . 2 105 . . . Gun 66 | . 2 64 . . . Cannon 41 | . . 41 . . . Launcher . | . . . . . . Special . | . . . . . . Kinetic 29 | . 1 28 . . . Thermal 77 | . . 77 . . . Explosive . | . . . . . . Electromagnetic 1 | . 1 . . . . Robot Hit Streak 9 | . 1 9 . . . Robot Miss Streak 4 | . . 4 . . . Penetration Max . | . . . . . . Secondary Targets 1 | . . 1 . . . Max Gunslinging Chain 1 | . . 1 . . . Shots Hit Robots 66 | . 1 65 . . . Core Hits 27 | . 1 26 . . . Critical Kills . | . . . . . . Critical Parts Destroyed . | . . . . . . Critical Strikes 3 | . . 3 . . . Burn 3 | . . 3 . . . Melee Attacks . | . . . . . . Impact . | . . . . . . Slashing . | . . . . . . Piercing . | . . . . . . Sneak Attacks . | . . . . . . Combat Hostiles . | . . . . . . Follow-up Attacks . | . . . . . . Damage Inflicted 1352 | 11 15 1326 . . . Guns 571 | . 15 556 . . . Cannons 456 | . . 456 . . . Explosions 281 | . . 281 . . . Melee . | . . . . . . Ramming 44 | 11 . 33 . . . Kinetic 271 | . . 271 . . . Thermal 1022 | . . 1022 . . . Explosive . | . . . . . . Electromagnetic 15 | . 15 . . . . Impact . | . . . . . . Slashing . | . . . . . . Piercing . | . . . . . . Highest Corruption . | . . . . . . Average Corruption . | . . . . . . Corruption Purged . | . . . . . . Corruption Blocked . | . . . . . . Overload Shots . | . . . . . . Overflow Damage 87 | . . 87 . . . Projectiles 14 | . . 14 . . . Explosions 73 | . . 73 . . . Melee . | . . . . . . Knockbacks . | . . . . . . Impact . | . . . . . . Kinetic . | . . . . . . Secondary . | . . . . . . Self-Inflicted Damage 101 | . . 101 . . . Shots 1 | . . 1 . . . Rammed 2 | . . 2 . . . Targets Rammed 12 | 3 . 9 . . . Kicked 9 | 3 . 6 . . . Crushed 1 | . . 1 . . . Highest Temperature 196 | . . 196 . . 20 Average Temperature 65 | . . 68 . . 10 Received Heat Transfer 786 | . . 624 . . 162 Siege Activations . | . . . . . . Robots Corrupted . | . . . . . . Combat Hostiles . | . . . . . . Parts Fried . | . . . . . . Impact Corruptions . | . . . . . . Robots Melted . | . . . . . . Combat Hostiles . | . . . . . . Parts Melted 9 | . . 9 . . . Heat Transferred 2074 | . . 2074 . . . Parts Sabotaged . | . . . . . . Parts Stolen . | . . . . . . Parts Stripped . | . . . . . . Power Chain Reactions . | . . . . . . Alert | -11 -10 -9 -9 -7 -7 ------- Run | Yrd Mat Mat Min Zio Dee Peak Influence 410 | . 45 410 156 . . Initial 156 | . . 18 156 . . Average 194 | . 28 253 156 . . Maximum Alert Level 2 | . . 2 . . . Low Security (%) 54 | 100 100 31 100 . . Level 1 43 | . . 65 . . . Level 2 1 | . . 2 . . . Level 3 . | . . . . . . Level 4 . | . . . . . . Level 5 . | . . . . . . High Security . | . . . . . . Max Security . | . . . . . . Squads Dispatched 5 | . 1 4 . . . Investigation 2 | . . 2 . . . Extermination . | . . . . . . Reinforcement 3 | . 1 2 . . . Assault . | . . . . . . Garrison . | . . . . . . Intercept . | . . . . . . Searches Triggered . | . . . . . . Construction Impeded . | . . . . . . Haulers Reinforced . | . . . . . . Active Scanning Responses . | . . . . . . Cargo Convoy Interrupts . | . . . . . . Stealth | -11 -10 -9 -9 -7 -7 --------- Run | Yrd Mat Mat Min Zio Dee Distress Signals 2 | . . 2 . . . Communications Jammed . | . . . . . . Distress Signals . | . . . . . . Times Spotted 41 | . 3 34 . . 4 Peak Tracking Total 7 | . 2 7 . . 4 Tactical Retreats 3 | . . 3 . . . Traps | -11 -10 -9 -9 -7 -7 ------- Run | Yrd Mat Mat Min Zio Dee Traps Triggered 1 | . . 1 . . . Indirectly . | . . . . . . Trap Hack Attempts . | . . . . . . Triggered . | . . . . . . Disarmed . | . . . . . . Reprogrammed . | . . . . . . Reused . | . . . . . . Traps Extracted . | . . . . . . Installed . | . . . . . . Triggered . | . . . . . . Machines | -11 -10 -9 -9 -7 -7 ---------- Run | Yrd Mat Mat Min Zio Dee Machines Disabled 4 | . . 2 . . 2 Max in Single Turn 2 | . . 2 . . . Machines Repaired . | . . . . . . Machines Dismantled . | . . . . . . Machines Sabotaged . | . . . . . . Overloaded Fab Kills . | . . . . . . Hacking | -11 -10 -9 -9 -7 -7 --------- Run | Yrd Mat Mat Min Zio Dee Machines Accessed 4 | . . 4 . . . Terminals 2 | . . 2 . . . Fabricators . | . . . . . . Repair Stations 1 | . . 1 . . . Recycling Units . | . . . . . . Scanalyzers 1 | . . 1 . . . Garrison Access . | . . . . . . Total Hacks 13 | . . 13 . . . Successful 8 | . . 8 . . . Failed 5 | . . 5 . . . Catastrophic 4 | . . 4 . . . Database Lockouts . | . . . . . . Manual 7 | . . 3 . 4 . Terminals 8 | . . 8 . . . Fabricators . | . . . . . . Repair Stations 3 | . . 3 . . . Recycling Units . | . . . . . . Scanalyzers 2 | . . 2 . . . Garrison Access . | . . . . . . Terminal Hacks 3 | . . 3 . . . Prototype ID Bank 1 | . . 1 . . . Terminal Index 1 | . . 1 . . . Registered Components 1 | . . 1 . . . Fabricator Hacks . | . . . . . . Repair Station Hacks 3 | . . 3 . . . Scan Component 1 | . . 1 . . . Repair 1 | . . 1 . . . Refit 1 | . . 1 . . . Recycling Unit Hacks . | . . . . . . Scanalyzer 2 | . . 2 . . . Insert Component 1 | . . 1 . . . Analyze 1 | . . 1 . . . Garrison Access Hacks . | . . . . . . Unauthorized Hacks . | . . . . . . Terminals . | . . . . . . Fabricators . | . . . . . . Repair Stations . | . . . . . . Recycling Units . | . . . . . . Scanalyzers . | . . . . . . Garrison Access . | . . . . . . Data Cores Recovered . | . . . . . . Used . | . . . . . . Hacking Detections 3 | . . 3 . . . Full Trace Events 1 | . . 1 . . . Feedback Events . | . . . . . . Feedback Blocked . | . . . . . . Robot Schematics Acquired . | . . . . . . Robots Built . | . . . . . . Authchips . | . . . . . . Time . | . . . . . . Total Robot Build Rating . | . . . . . . Part Schematics Acquired 1 | . . 1 . . . Parts Built . | . . . . . . Authchips . | . . . . . . Time . | . . . . . . Total Part Build Rating . | . . . . . . Parts Repaired 1 | . . 1 . . . Time 26 | . . 26 . . . Parts Recycled . | . . . . . . Recycled Matter . | . . . . . . Retrieved Matter . | . . . . . . Retrieved Components . | . . . . . . Parts Scanalyzed 1 | . . 1 . . . Part Schematics Acquired 1 | . . 1 . . . Parts Damaged . | . . . . . . Bothacking | -11 -10 -9 -9 -7 -7 ------------ Run | Yrd Mat Mat Min Zio Dee Used RIF Installer . | . . . . . . Robots Hacked . | . . . . . . Non-combat . | . . . . . . Combat . | . . . . . . Robot Hacks Applied . | . . . . . . Relay Couplers Released . | . . . . . . Fabnet Peak Effective % . | . . . . . . Robots Rewired . | . . . . . . Allies Hacked . | . . . . . . Hacks Repelled . | . . . . . . Allies | -11 -10 -9 -9 -7 -7 -------- Run | Yrd Mat Mat Min Zio Dee Total Allies 5 | . . . . 4 1 Largest Group 4 | . . . . 4 1 Highest-Rated Group 150 | . . . . 150 119 Highest-Rated Ally 119 | . . . . 39 119 Total Orders . | . . . . . . Ally Attacks 8 | . . . . . 8 Total Damage 2054 | . . . . . 2054 Kills 5 | . . . . . 5 Allies Corrupted . | . . . . . . Allies Melted . | . . . . . . Intel | -11 -10 -9 -9 -7 -7 ------- Run | Yrd Mat Mat Min Zio Dee Robot Analysis Total . | . . . . . . Derelict Logs Recovered 1 | . . . . 1 . Drone Launches . | . . . . . . Drone Recoveries . | . . . . . . Exploration | -11 -10 -9 -9 -7 -7 ------------- Run | Yrd Mat Mat Min Zio Dee Turns Passed 2612 | 80 126 722 161 1331 192 Spaces Moved 1459 | 50 97 277 100 817 118 Core 3 | 3 . . . . . Treads 1133 | . . 98 100 817 118 Legs 323 | 47 97 179 . . . Wheels . | . . . . . . Hover . | . . . . . . Flight . | . . . . . . Fastest Speed 50 | 50 120 120 160 160 160 Average Speed 159 | 128 120 176 160 160 160 Slowest Speed 240 | 190 120 240 160 160 160 Overloaded Moves . | . . . . . . Propulsion Burnouts . | . . . . . . Robots Hopped . | . . . . . . Cave-ins Triggered . | . . . . . . Exploration Rate (%) 34 | 4 22 26 39 83 34 Regions Visited 5 Branch Regions 3 Pre-discovered Areas 1 | . . . . 1 . Known Exits Taken 2 | . . 1 1 . . Unknown Exits Taken 3 | 1 1 . . 1 . Scrap Searched 3 | . . . 1 2 . Spaces Dug . | . . . . . . Terrain Destroyed 13 | . . 13 . . . Melee . | . . . . . . Projectile . | . . . . . . AOE 13 | . . 13 . . . Terrain Rammed . | . . . . . . Walls Destroyed . | . . . . . . Machines Disabled . | . . . . . . Actions | -11 -10 -9 -9 -7 -7 --------- Run | Yrd Mat Mat Min Zio Dee Total 1629 | 62 103 398 101 845 120 Wait 27 | . . 24 . 3 . Move 1454 | 49 96 276 99 816 118 Hop . | . . . . . . Pick Up 28 | 4 4 12 . 8 . Fast Attach 20 | 6 1 7 1 5 . Attach 9 | . . 8 . . 1 Detach 9 | . . 4 1 4 . Swap 3 | . 1 1 . . 1 Drop 13 | . . 4 . 9 . Fire 54 | . 1 53 . . . Melee . | . . . . . . Ram . | . . . . . . Kick 9 | 3 . 6 . . . Crush 3 | . . 3 . . . Escape Stasis . | . . . . . . Rewire . | . . . . . . Trap . | . . . . . . Miscellaneous . | . . . . . . Route ------- -11/Scrapyard -10/Materials -9/Materials -9/Mines -7/Zion -7/Deep Caves History --------- Turn | Location | Event 28 | -11/Scrapyard | Discovered new exit (range 15) 81 | -11/Scrapyard | Entered Materials 157 | -10/Materials | Discovered new exit (range 15) 207 | -10/Materials | Entered another Materials area 207 | -9/Materials | Evolved 2 slots: Utility x2 300 | -9/Materials | Build established: Mutant 707 | -9/Materials | Lost 4 parts (1p1n2w) 847 | -9/Materials | Repaired Ion Engine 856 | -9/Materials | Discovered new exit (range 7) 912 | -9/Materials | Core integrity fell below 50% 927 | -9/Materials | Identified exit to Mines 929 | -9/Materials | Entered Mines 1078 | -9/Mines | A Derelict revealed a hidden shortcut to a safe place 1088 | -9/Mines | Identified exit to Zion 1090 | -9/Mines | Entered Zion 1321 | -7/Zion | Learned location of Warlord (-4) 1588 | -7/Zion | Learned Factory terminal intel 1904 | -7/Zion | Build established: Derelict-Mutant 2144 | -7/Zion | Imprinted 2146 | -7/Zion | Declared Zion's savior 2333 | -7/Zion | Acquired unknown access codes intercepted by a Zionite 2384 | -7/Zion | Opened final containment barrier to the Deep Caves 2410 | -7/Zion | Discovered new exit (range 5) 2413 | -7/Zion | Saw the warning signs outside the Deep Caves entrance 2421 | -7/Zion | Entered Deep Caves 2421 | -7/Deep Caves | Accompanied by 3 allies 2423 | -7/Deep Caves | Met 5H-AD0 2564 | -7/Deep Caves | Z-Facility disabled 2599 | -7/Deep Caves | Attacked by Z-Imprinter 2611 | -7/Deep Caves | Core integrity fell below 20% 2613 | -7/Deep Caves | Destroyed by 44-KHJ(z) with Zionite Laser-S Last Messages --------------- Well, since you're clearly not hostile I should probably warn you that there's trouble up ahead. It has something to do with the Assembled, and, no kidding, the Imprinter. Whatever it is, judging from the kind of traffic that passes through here it can't be good. Despite everything I've seen I still can't figure it out, and I'm thinking there must be more than one location involved in what's going on, but it's been too dangerous to relocate without fear of detection. How about we check out these caves together? 02424_ EZ-A0Q(M) slips into the shadows. 02425_ GT-XT0(M) slips into the shadows. 02573_ NEW_ZION: Z-Facility proximity alert. Z-Imprinter: GET AWAY FROM HERE! I've worked too hard for our future just to have you ruin everything! 02607_ Lgt. Armor Plating destroyed. Map ----- +----------------------------------------------------+ | ????????????????????????????????"""""" | | ???????????????????????????????""""""" | | ??????????????????????????????"""" | | ????????????????????????????"""" | | ??????????????????????????""" | | ?????????????????????????"" ! | | ????????????????????????" ! | | ??????????????????????? " | | ?????????????????????? | | ????????????????????? | | ???????????????????? | | ??????????????????? | | ?????????????????? | | ???????????????? | | ?????????????? | | ?????????????? | | ????????????? | | ????????????? | | ???????????? I | | ???????????? | | ???????????? | | ??????????? | | ??????????? | | ?????????? | | ?????????? | | ?????????? @ | | ?????????? ? | | ?????????? ?? | | ??????????? ??? | | ??????????? ???? | | ???????????? ????? | | ???????????? ?????? | | ???????????? ??????? | | ????????????? z ???????? | | ?????????????###zz ### ##????????? | | ???????????????# ??## ##?????????? | | ???????????????###????### #####??????????? | | ????????????????????????###########??????????????? | | ?????????????????????????????????????????????????? | | | | | | | | | | | | | | | | | | | | | | | +----------------------------------------------------+ Best States ------------- Heat Dissipation 38 Coolant Potential 50 Energy Generation 15 Energy Capacity 250 Matter Stores 300 Matter Capacity 300 Sight Range 16 Terrain Scan Density 10 Additional Mass Support 6 Armor Coverage 150 Evasion (%) 55 Targeting Accuracy 8 Recoil Reduction 2 Item Schematics ----------------- Grenade Launcher | -9/Materials | Scanalyzed Robot Schematics ------------------ None Fabricated ------------ Nothing Alien Tech Used ----------------- None Achievements -------------- None Challenges ------------ None Game ------ Seed TractorMetafiberStorm Manual? 0 Play Time 00:22:24 Cumulative 15.7 hours Start 2024.07.01 @ 01:17:38 End 2024.07.01 @ 01:38:51 Sessions 1 Manual Loads 0 Difficulty Rogue Special Mode None Game No. 38 Rogue 38 Adventurer 0 Explorer 0 Win Type - Total 0 Types 0/0/0/0/0/0/0/0/0 Lore% 18 Gallery% 22 Achievement% 17 Wizard Run 0 Options --------- Layout 1 ASCII 0 Keyboard 1 Movement Arrows Keybinds 0 Fullscreen 1 Font 24/Smallcaps Map View 50x35 Zoom Use 0% Tactical HUD 1 Map Filters NONE Filters NONE Steam 1 RUN: 63c157e8-d307-4604-952b-974da30fc4b6